Workbook

Sheet FL Cover Sheet
A1: County | C1: Appraisal Year | D1: 2026
F3: LIGHT YELLOW SHADED FIELDS ARE FOR USER INPUT THROUGHOUT THIS TEMPLATE
A4: Facility Name
A5: Company/Owner Name | F5: Other colors and non-shaded fields should remain locked to function properly. They contain data and calculations that will populate automatically based on user input into yellow fields.
A6: Situs Address | C6: Situs Zip
A7: Facility Contact
A8: Phone # | F8: USING TEMPLATE
A11: Parcel ID | C11: Quick Ref ID | F11: Begin by completing required yellow shaded fields on Cover Sheet (brown tab)
F12: Next go to Data Entry-Cost Worksheet (bright blue tab)
F13: Enter data into yellow shaded fields. Not all data required. Drop-downs description data for convenience
F14: Quality and Condition cells are required for each line entry to create overall rating for feedlot
F15: Verify Overall Feedlot Rating, make adjustments per section for accurate quality and condition descriptions
F16: Add any notes at bottom of data entry worksheet
F17: Go to Value Reconciliation tab (bright yellow) . Verify quality and condition data for Overall Feedlot Rate
F18: OVERRIDE Feedlot Rate replaces calculated Overall Rate in Sales Comparison Finalized Overall Feedlot Quality & Condition
A23: Feedlot Location/Region | C23: Primary Feed Process
A24: Land Value Region
A25: Licensed Head Capacity | C25: License Type
A26: *Reported Bunk Capacity | C26: **Bunk Linear Ft
A27: *Avg Head on Feed if known. Leave blank if unknown. | C27: **Enter ONLY if Reported Bunk Capacity unknown/blank.
A29: Inspection Date
A30: Review Appraiser
B39: Allen
B40: Anderson
B41: Atchison
B42: Barber
B43: Barton
B44: Bourbon
B45: Brown
B46: Butler
B47: Chase
B48: Chautauqua
B49: Cherokee
B50: Cheyenne
B51: Clark
B52: Clay
B53: Cloud
B54: Coffey
B55: Comanche
B56: Cowley
B57: Crawford
B58: Decatur
B59: Dickinson
B60: Doniphan
B61: Douglas
B62: Edwards
B63: Elk
B64: Ellis
B65: Ellsworth
B66: Finney
B67: Ford
B68: Franklin
B69: Geary
B70: Gove
B71: Graham
B72: Grant
B73: Gray
B74: Greeley
B75: Greenwood
B76: Hamilton
B77: Harper
B78: Harvey
B79: Haskell
B80: Hodgeman
B81: Jackson
B82: Jefferson
B83: Jewell
B84: Johnson
B85: Kearny
B86: Kingman
B87: Kiowa
B88: Labette
B89: Lane
B90: Leavenworth
B91: Lincoln
B92: Linn
B93: Logan
B94: Lyon
B95: Marion
B96: Marshall
B97: McPherson
B98: Meade
B99: Miami
B100: Mitchell
B101: Montgomery
B102: Morris
B103: Morton
B104: Nemaha
B105: Neosho
B106: Ness
B107: Norton
B108: Osage
B109: Osborne
B110: Ottawa
B111: Pawnee
B112: Phillips
B113: Pottawatomie
B114: Pratt
B115: Rawlins
B116: Reno
B117: Republic
B118: Rice
B119: Riley
B120: Rooks
B121: Rush
B122: Russell
B123: Saline
B124: Scott
B125: Sedgwick
B126: Seward
B127: Shawnee
B128: Sheridan
B129: Sherman
B130: Smith
B131: Stafford
B132: Stanton
B133: Stevens
B134: Sumner
B135: Thomas
B136: Trego
B137: Wabaunsee
B138: Wallace
B139: Washington
B140: Wichita
B141: Wilson
B142: Woodson
B143: Wyandotte

Sheet Value Reconciliation
A1: Quick Ref ID# | B1: =IF('FL Cover Sheet'!D11="","",'FL Cover Sheet'!D11) ->  | C1: Owner | D1: =IF('FL Cover Sheet'!B5="","",'FL Cover Sheet'!B5) ->  | F1: Tax Year | G1: ='FL Cover Sheet'!D1 -> 2026
A2: Situs | B2: =IF('FL Cover Sheet'!B6="","",'FL Cover Sheet'!B6) ->  | C2: Situs ZIP | D2: =IF('FL Cover Sheet'!D6="","",'FL Cover Sheet'!D6) ->  | E2: Region | F2: =IF('FL Cover Sheet'!B23="","",'FL Cover Sheet'!B23) -> 
A4: Feedlot Quality and Condition Summary
D5: Quality | F5: Condition
A6: Feedlot Improvements | D6: =IFERROR(_xlfn.IFNA(VLOOKUP(IF('Data Entry-Inventory Worksheet'!L30<1,Tables!$S$129,ROUND('Data Entry-Inventory Worksheet'!L30,0)),Tables!$S$125:$T$129,2,FALSE),""),"") ->  | F6: =IFERROR(_xlfn.IFNA(VLOOKUP(MROUND('Data Entry-Inventory Worksheet'!N30,0.5),Tables!$L$29:$M$37,2,FALSE),""),"") -> 
A7: Cattle Pens | D7: =IFERROR(_xlfn.IFNA(VLOOKUP(IF('Data Entry-Inventory Worksheet'!L44<1,Tables!$S$129,ROUND('Data Entry-Inventory Worksheet'!L44,0)),Tables!$S$125:$T$129,2,FALSE),""),"") ->  | F7: =IFERROR(_xlfn.IFNA(VLOOKUP(MROUND('Data Entry-Inventory Worksheet'!N44,0.5),Tables!$L$29:$M$37,2,FALSE),""),"") -> 
A8: Feed Storage Type | D8: =IFERROR(_xlfn.IFNA(VLOOKUP(IF('Data Entry-Inventory Worksheet'!L58<1,Tables!$S$129,ROUND('Data Entry-Inventory Worksheet'!L58,0)),Tables!$S$125:$T$129,2,FALSE),""),"") ->  | F8: =IFERROR(_xlfn.IFNA(VLOOKUP(MROUND('Data Entry-Inventory Worksheet'!N58,0.5),Tables!$L$29:$M$37,2,FALSE),""),"") -> 
A9: Feed Processing Type | D9: =IFERROR(_xlfn.IFNA(VLOOKUP(IF('Data Entry-Inventory Worksheet'!L67<1,Tables!$S$129,ROUND('Data Entry-Inventory Worksheet'!L67,0)),Tables!$S$125:$T$129,2,FALSE),""),"") ->  | F9: =IFERROR(_xlfn.IFNA(VLOOKUP(MROUND('Data Entry-Inventory Worksheet'!N67,0.5),Tables!$L$29:$M$37,2,FALSE),""),"") -> 
A10: Quality & Condition Overall Feedlot | D10: ='Data Entry-Inventory Worksheet'!L72 ->  | F10: ='Data Entry-Inventory Worksheet'!N72 -> 
A11: Quality & Condition OVERRIDE Feedlot
A13: Quality & Condition FINAL CONCLUSION | H13: Quality and condition MUST match; if using the spreadsheet assigned quality, you must use the spreadsheet assigned condition; or if using the override quality, you must use the override condition.
A14: Sales Comparison Approach Summary
A16: Finalized Overall Feedlot Quality & Condition | D16: =IF(D13="","",D13) ->  | F16: =IF(F13="","",F13) -> 
A17: Bunk Capacity | F17: ='Data Entry-Inventory Worksheet'!$G$10 -> 
A18: Value per Head $ | F18: =_xlfn.IFNA(MROUND(VLOOKUP(D13,Tables!AQ4:CW17,VLOOKUP(F13,Tables!BC22:BD30,2,FALSE)-1+VLOOKUP('FL Cover Sheet'!$D$23,Tables!BF23:BG27,2,FALSE),FALSE),1),"") -> 
A20: Reconciliation of Value
A22: Total Feedlot Value (Includes Land) | E22: =IFERROR(ROUND(F17*F18,0),"") -> 
D24: Land Region
A25: Land Value per Acre | D25: =IF('FL Cover Sheet'!B24="","",'FL Cover Sheet'!B24) ->  | F25: =IF($D$25="","",VLOOKUP($D$25,Tables!$A$24:$B$32,2,FALSE)) -> 
A26: Total Feedlot Acres | F26: ='Data Entry-Inventory Worksheet'!$D$16 -> 
A27: Total Feedlot Land Value | E27: =IFERROR(ROUND(F25*F26,0),"") -> 
A30: Total Feedlot Value (Includes Land) | E30: =$E$22 -> 
A31: Total Feedlot Land Value | E31: =IFERROR(ROUND(IF($E$27>(0.5*E30),(0.5*E30),E27),0),"") -> 
A32: Final Value Conclusion- Feedlot Value Less Land (Orion Entry) | E32: =IFERROR(ROUND(IF(E30-E31<0,0,E30-E31),0),"") -> 
A34: Notes:

Sheet Data Entry-Inventory Worksheet
A1: Quick Ref ID# | B1: =IF('FL Cover Sheet'!D11="","",'FL Cover Sheet'!D11) ->  | C1: Owner | D1: =IF('FL Cover Sheet'!B5="","",'FL Cover Sheet'!B5) ->  | F1: Tax Year | G1: ='FL Cover Sheet'!D1 -> 2026 | W1: Improvements | X1: Cattle Pens | Y1: Feed Storage | Z1: Feed Process
A2: Situs | B2: =IF('FL Cover Sheet'!B6="","",'FL Cover Sheet'!B6) ->  | C2: Situs ZIP | D2: =IF('FL Cover Sheet'!D6="","",'FL Cover Sheet'!D6) ->  | E2: Region | F2: =IF('FL Cover Sheet'!B23="","",'FL Cover Sheet'!B23) ->  | W2: =MATCH(W1,$J:$J,0) -> 30 | X2: =MATCH(X1,$J:$J,0) -> 44 | Y2: 58 | Z2: 67
A4: Commercial Feedlot Real Estate Inventory
A5: Quick Ref | B5: Parcel Number | D5: Feedlot Acres per Parcel | E5: Feedlot Capacity
A6: =IF('FL Cover Sheet'!D11="","",'FL Cover Sheet'!D11) ->  | B6: =IF('FL Cover Sheet'!B11="","",'FL Cover Sheet'!B11) ->  | E6: Licensed Capacity | G6: =IF('FL Cover Sheet'!B25="","",'FL Cover Sheet'!B25) -> 
A7: =IF('FL Cover Sheet'!D12="","",'FL Cover Sheet'!D12) ->  | B7: =IF('FL Cover Sheet'!B12="","",'FL Cover Sheet'!B12) ->  | E7: Inches per Head | G7: 12
A8: =IF('FL Cover Sheet'!D13="","",'FL Cover Sheet'!D13) ->  | B8: =IF('FL Cover Sheet'!B13="","",'FL Cover Sheet'!B13) ->  | E8: Reported Bunk Capacity | G8: =IF('FL Cover Sheet'!$B$26="","",'FL Cover Sheet'!B26) -> 
A9: =IF('FL Cover Sheet'!D14="","",'FL Cover Sheet'!D14) ->  | B9: =IF('FL Cover Sheet'!B14="","",'FL Cover Sheet'!B14) ->  | E9: Bunk Linear Feet | G9: =IF('FL Cover Sheet'!$D$26="","",'FL Cover Sheet'!D26) -> 
A10: =IF('FL Cover Sheet'!D15="","",'FL Cover Sheet'!D15) ->  | B10: =IF('FL Cover Sheet'!B15="","",'FL Cover Sheet'!B15) ->  | E10: Reported OR Calculated Bunk Capacity | G10: =IFERROR(IF(G8="",ROUND(G9*12/G7,0),G8),"") -> 
A11: =IF('FL Cover Sheet'!D16="","",'FL Cover Sheet'!D16) ->  | B11: =IF('FL Cover Sheet'!B16="","",'FL Cover Sheet'!B16) ->  | E11: Feedlot Region / Location
A12: =IF('FL Cover Sheet'!D17="","",'FL Cover Sheet'!D17) ->  | B12: =IF('FL Cover Sheet'!B17="","",'FL Cover Sheet'!B17) ->  | E12: Feedlot Region | G12: =IF('FL Cover Sheet'!B23="","",'FL Cover Sheet'!B23) -> 
A13: =IF('FL Cover Sheet'!D18="","",'FL Cover Sheet'!D18) ->  | B13: =IF('FL Cover Sheet'!B18="","",'FL Cover Sheet'!B18) ->  | E13: Land Value Region | G13: =IF('FL Cover Sheet'!B24="","",'FL Cover Sheet'!B24) -> 
A14: =IF('FL Cover Sheet'!D19="","",'FL Cover Sheet'!D19) ->  | B14: =IF('FL Cover Sheet'!B19="","",'FL Cover Sheet'!B19) ->  | E14: Feedlot Access
A15: =IF('FL Cover Sheet'!D20="","",'FL Cover Sheet'!D20) ->  | B15: =IF('FL Cover Sheet'!B20="","",'FL Cover Sheet'!B20) ->  | E15: Feed Processing / Mill Type
B16: Total Feedlot Acres | D16: =IF(SUM(D6:D15)=0,"",ROUND(SUM(D6:D15),2)) ->  | E16: Primary Process Type | F16: =IF('FL Cover Sheet'!D23="","",'FL Cover Sheet'!D23) -> 
B17: Total Licensed Capacity / Acre | D17: =IFERROR(ROUND($G$6/$D$16,0),"") ->  | E17: Secondary Process Type
A18: Improvements | D18: All data fields in lavendar are OPTIONAL for descriptive purposes | K18: Quality & Cond REQUIRED if line entry
A19: Improvement Type | B19: Imp Descrip-Construction | D19: M&S Occupancy | E19: M&S Const Class | F19: Size/SF | G19: Perimeter / Dimensions | H19: Wall Height | I19: Year Built | J19: Exterior Wall | K19: Quality | L19: Quality Rate | M19: Condition | N19: Cond Rate
L20: =IF(K20="","",VLOOKUP(K20,Tables!$K$13:$L$26,2,FALSE)) ->  | N20: =IF(M20="","",VLOOKUP(M20,Tables!$K$29:$L$37,2,FALSE)) -> 
L21: =IF(K21="","",VLOOKUP(K21,Tables!$K$13:$L$26,2,FALSE)) ->  | N21: =IF(M21="","",VLOOKUP(M21,Tables!$K$29:$L$37,2,FALSE)) -> 
L22: =IF(K22="","",VLOOKUP(K22,Tables!$K$13:$L$26,2,FALSE)) ->  | N22: =IF(M22="","",VLOOKUP(M22,Tables!$K$29:$L$37,2,FALSE)) -> 
L23: =IF(K23="","",VLOOKUP(K23,Tables!$K$13:$L$26,2,FALSE)) ->  | N23: =IF(M23="","",VLOOKUP(M23,Tables!$K$29:$L$37,2,FALSE)) -> 
L24: =IF(K24="","",VLOOKUP(K24,Tables!$K$13:$L$26,2,FALSE)) ->  | N24: =IF(M24="","",VLOOKUP(M24,Tables!$K$29:$L$37,2,FALSE)) -> 
L25: =IF(K25="","",VLOOKUP(K25,Tables!$K$13:$L$26,2,FALSE)) ->  | N25: =IF(M25="","",VLOOKUP(M25,Tables!$K$29:$L$37,2,FALSE)) -> 
L26: =IF(K26="","",VLOOKUP(K26,Tables!$K$13:$L$26,2,FALSE)) ->  | N26: =IF(M26="","",VLOOKUP(M26,Tables!$K$29:$L$37,2,FALSE)) -> 
L27: =IF(K27="","",VLOOKUP(K27,Tables!$K$13:$L$26,2,FALSE)) ->  | N27: =IF(M27="","",VLOOKUP(M27,Tables!$K$29:$L$37,2,FALSE)) -> 
L28: =IF(K28="","",VLOOKUP(K28,Tables!$K$13:$L$26,2,FALSE)) ->  | N28: =IF(M28="","",VLOOKUP(M28,Tables!$K$29:$L$37,2,FALSE)) -> 
L29: =IF(K29="","",VLOOKUP(K29,Tables!$K$13:$L$26,2,FALSE)) ->  | N29: =IF(M29="","",VLOOKUP(M29,Tables!$K$29:$L$37,2,FALSE)) -> 
J30: Improvements | K30: Quality Average | L30: =IFERROR(ROUND(AVERAGE(L20:L29),2),"") ->  | M30: Condition Average | N30: =IFERROR(ROUND(AVERAGE(N20:N29),2),"") -> 
A32: Cattle Pens
A33: Pen Type | B33: Descrip-Construction | D33: M&S Component | E33: Comp Descrip | F33: Size/SF | G33: Perimeter / Dimensions | H33: Count # | I33: Year Built | J33: Material | K33: Quality | L33: Quality Rate | M33: Condition | N33: Cond Rate
L34: =IF(K34="","",VLOOKUP(K34,Tables!$K$13:$L$26,2,FALSE)) ->  | N34: =IF(M34="","",VLOOKUP(M34,Tables!$K$29:$L$37,2,FALSE)) -> 
L35: =IF(K35="","",VLOOKUP(K35,Tables!$K$13:$L$26,2,FALSE)) ->  | N35: =IF(M35="","",VLOOKUP(M35,Tables!$K$29:$L$37,2,FALSE)) -> 
L36: =IF(K36="","",VLOOKUP(K36,Tables!$K$13:$L$26,2,FALSE)) ->  | N36: =IF(M36="","",VLOOKUP(M36,Tables!$K$29:$L$37,2,FALSE)) -> 
L37: =IF(K37="","",VLOOKUP(K37,Tables!$K$13:$L$26,2,FALSE)) ->  | N37: =IF(M37="","",VLOOKUP(M37,Tables!$K$29:$L$37,2,FALSE)) -> 
L38: =IF(K38="","",VLOOKUP(K38,Tables!$K$13:$L$26,2,FALSE)) ->  | N38: =IF(M38="","",VLOOKUP(M38,Tables!$K$29:$L$37,2,FALSE)) -> 
L39: =IF(K39="","",VLOOKUP(K39,Tables!$K$13:$L$26,2,FALSE)) ->  | N39: =IF(M39="","",VLOOKUP(M39,Tables!$K$29:$L$37,2,FALSE)) -> 
L40: =IF(K40="","",VLOOKUP(K40,Tables!$K$13:$L$26,2,FALSE)) ->  | N40: =IF(M40="","",VLOOKUP(M40,Tables!$K$29:$L$37,2,FALSE)) -> 
L41: =IF(K41="","",VLOOKUP(K41,Tables!$K$13:$L$26,2,FALSE)) ->  | N41: =IF(M41="","",VLOOKUP(M41,Tables!$K$29:$L$37,2,FALSE)) -> 
L42: =IF(K42="","",VLOOKUP(K42,Tables!$K$13:$L$26,2,FALSE)) ->  | N42: =IF(M42="","",VLOOKUP(M42,Tables!$K$29:$L$37,2,FALSE)) -> 
L43: =IF(K43="","",VLOOKUP(K43,Tables!$K$13:$L$26,2,FALSE)) ->  | N43: =IF(M43="","",VLOOKUP(M43,Tables!$K$29:$L$37,2,FALSE)) -> 
J44: Cattle Pens | K44: Quality Average | L44: =IFERROR(ROUND(AVERAGE(L34:L43),2),"") ->  | M44: Condition Average | N44: =IFERROR(ROUND(AVERAGE(N34:N43),2),"") -> 
A46: Feed Storage- Bins, Tanks, Bunkers,…...
A47: Feed Storage Type | B47: Descrip-Construction | D47: M&S Component | E47: Comp Descrip | F47: Size/SF | G47: Perimeter / Dimensions | H47: Count # | I47: Year Built | J47: Capacity | K47: Quality | L47: Quality Rate | M47: Condition | N47: Cond Rate
L48: =IF(K48="","",VLOOKUP(K48,Tables!$K$13:$L$26,2,FALSE)) ->  | N48: =IF(M48="","",VLOOKUP(M48,Tables!$K$29:$L$37,2,FALSE)) -> 
L49: =IF(K49="","",VLOOKUP(K49,Tables!$K$13:$L$26,2,FALSE)) ->  | N49: =IF(M49="","",VLOOKUP(M49,Tables!$K$29:$L$37,2,FALSE)) -> 
L50: =IF(K50="","",VLOOKUP(K50,Tables!$K$13:$L$26,2,FALSE)) ->  | N50: =IF(M50="","",VLOOKUP(M50,Tables!$K$29:$L$37,2,FALSE)) -> 
L51: =IF(K51="","",VLOOKUP(K51,Tables!$K$13:$L$26,2,FALSE)) ->  | N51: =IF(M51="","",VLOOKUP(M51,Tables!$K$29:$L$37,2,FALSE)) -> 
L52: =IF(K52="","",VLOOKUP(K52,Tables!$K$13:$L$26,2,FALSE)) ->  | N52: =IF(M52="","",VLOOKUP(M52,Tables!$K$29:$L$37,2,FALSE)) -> 
L53: =IF(K53="","",VLOOKUP(K53,Tables!$K$13:$L$26,2,FALSE)) ->  | N53: =IF(M53="","",VLOOKUP(M53,Tables!$K$29:$L$37,2,FALSE)) -> 
L54: =IF(K54="","",VLOOKUP(K54,Tables!$K$13:$L$26,2,FALSE)) ->  | N54: =IF(M54="","",VLOOKUP(M54,Tables!$K$29:$L$37,2,FALSE)) -> 
L55: =IF(K55="","",VLOOKUP(K55,Tables!$K$13:$L$26,2,FALSE)) ->  | N55: =IF(M55="","",VLOOKUP(M55,Tables!$K$29:$L$37,2,FALSE)) -> 
L56: =IF(K56="","",VLOOKUP(K56,Tables!$K$13:$L$26,2,FALSE)) ->  | N56: =IF(M56="","",VLOOKUP(M56,Tables!$K$29:$L$37,2,FALSE)) -> 
L57: =IF(K57="","",VLOOKUP(K57,Tables!$K$13:$L$26,2,FALSE)) ->  | N57: =IF(M57="","",VLOOKUP(M57,Tables!$K$29:$L$37,2,FALSE)) -> 
J58: Feed Storage | K58: Quality Average | L58: =IFERROR(ROUND(AVERAGE(L48:L57),2),"") ->  | M58: Condition Average | N58: =IFERROR(ROUND(AVERAGE(N48:N57),2),"") -> 
A60: Feed Processing
A61: Feed Processing Type | D61: Descrip-Construction Major Repair Date | F61: Primary | G61: Size/SF | H61: Count # | I61: Year Built | J61: Capacity Tons / Hour | K61: Quality | L61: Quality Rate | M61: Condition | N61: Cond Rate
A62: =IF(F16="","",F16) ->  | F62: X | L62: =IF(K62="","",VLOOKUP(K62,Tables!$K$13:$L$26,2,FALSE)) ->  | N62: =IF(M62="","",VLOOKUP(M62,Tables!$K$29:$L$37,2,FALSE)) -> 
L63: =IF(K63="","",VLOOKUP(K63,Tables!$K$13:$L$26,2,FALSE)) ->  | N63: =IF(M63="","",VLOOKUP(M63,Tables!$K$29:$L$37,2,FALSE)) -> 
A64: =IF(F17="","",F17) ->  | L64: =IF(K64="","",VLOOKUP(K64,Tables!$K$13:$L$26,2,FALSE)) ->  | N64: =IF(M64="","",VLOOKUP(M64,Tables!$K$29:$L$37,2,FALSE)) -> 
L65: =IF(K65="","",VLOOKUP(K65,Tables!$K$13:$L$26,2,FALSE)) ->  | N65: =IF(M65="","",VLOOKUP(M65,Tables!$K$29:$L$37,2,FALSE)) -> 
L66: =IF(K66="","",VLOOKUP(K66,Tables!$K$13:$L$26,2,FALSE)) ->  | N66: =IF(M66="","",VLOOKUP(M66,Tables!$K$29:$L$37,2,FALSE)) -> 
J67: Feed Process | K67: Quality Average | L67: =IFERROR(ROUND(AVERAGE(L62:L66),2),"") ->  | M67: Condition Average | N67: =IFERROR(ROUND(AVERAGE(N62:N66),2),"") -> 
A68: Notes:
J69: Overall Feedlot | K69: Quality Average | L69: =IFERROR(ROUND(AVERAGE(L20:L29,L34:L43,L48:L57,L62:L66),2),"") ->  | M69: Condition Average | N69: =IFERROR(ROUND(AVERAGE(N20:N29,N34:N43,N48:N57,N62:N66),2),"") -> 
J71: Overall Feedlot | K71: Quality Rate | L71: =IFERROR(IF(L69=4,4,IF(ABS(L69-HLOOKUP(Tables!O24,Tables!O24:O37,MATCH(L69,Tables!O25:O37,1)+2))<ABS(L69-HLOOKUP(Tables!O24,Tables!O24:O37,MATCH(L69,Tables!O25:O37,1)+1)),HLOOKUP(Tables!O24,Tables!O24:O37,MATCH(L69,Tables!O25:O37,1)+2),HLOOKUP(Tables!O24,Tables!O24:O37,MATCH(L69,Tables!O25:O37,1)+1))),"") ->  | M71: Condition Rate | N71: =IF(N69="","",MROUND(N69,0.5)) -> 
K72: Quality | L72: =_xlfn.IFNA(VLOOKUP(L71,Tables!L13:M26,2,FALSE),"") ->  | M72: Condition | N72: =_xlfn.IFNA(VLOOKUP(N71,Tables!$L$29:$M$37,2,FALSE),"") -> 
J74: Quality Ratings
H75: The spreadsheet assigned "Quality Rate" is assigned by taking the "Quality Average" and using the table assignment that is closest to it. Example: if your "Quality Average" is 1.72, the assinged "Quality Rate" will be Average - (1.67) | J75: Very Good | K75: Very Good - | L75: Good + | M75: Good | N75: Good -
J76: 4 | K76: 3.67 | L76: 3.33 | M76: 3 | N76: 2.67
J77: Average + | K77: Average | L77: Average - | M77: Fair + | N77: Fair
J78: 2.33 | K78: 2 | L78: 1.67 | M78: 1.33 | N78: 1
J79: Fair - | K79: Low + | L79: Low | M79: Low -
J80: 0.84 | K80: 0.7 | L80: 0.6 | M80: 0.5
J82: Condition Ratings
J83: Very Good | K83: Good | L83: Average + | M83: Average | N83: Average -
J84: 4.5 | K84: 4 | L84: 3.5 | M84: 3 | N84: 2.5
J85: Fair | K85: Fair- | L85: Poor | M85: Poor -
J86: 2 | K86: 1.5 | L86: 1 | M86: 0.5

Sheet Tables
A1: Variations of Steam Flake Mill Facilities | AQ1: Weigh and Mix/Full Batch in Mill | BC1: Weigh System in Mill, Mix Batch in Feed Truck/Stationary Mixer | BO1: Bunker System-Weight and Mix Batch in Feed-Truck/Stationary Mixer | CA1: Dry Roll Mill Facility | CM1: Minimum Feed Processing Facility
A2: Weigh and Mix/Full Batch in Mill | F2: Weigh System in Mill, Mix Batch in Feed Truck/Stationary Mixer | K2: Bunker System—Weigh and Mix Batch in Feed-Truck/Stationary Mixer | AR2: Condition | BD2: Condition | BP2: Condition | CB2: Condition | CN2: Condition
B3: Condition | G3: Condition | L3: Condition | AQ3: Quality | AR3: Poor - | AS3: Poor | AT3: Fair - | AU3: Fair | AV3: Average - | AW3: Average | AX3: Average + | AY3: Good | AZ3: Very Good | BA3: Interval | BC3: Quality | BD3: Poor - | BE3: Poor | BF3: Fair - | BG3: Fair | BH3: Average - | BI3: Average | BJ3: Average + | BK3: Good | BL3: Very Good | BM3: Interval | BO3: Quality | BP3: Poor - | BQ3: Poor | BR3: Fair - | BS3: Fair | BT3: Average - | BU3: Average | BV3: Average + | BW3: Good | BX3: Very Good | BY3: Interval | CA3: Quality | CB3: Poor - | CC3: Poor | CD3: Fair - | CE3: Fair | CF3: Average - | CG3: Average | CH3: Average + | CI3: Good | CJ3: Very Good | CK3: Interval | CM3: Quality | CN3: Poor - | CO3: Poor | CP3: Fair - | CQ3: Fair | CR3: Average - | CS3: Average | CT3: Average + | CU3: Good | CV3: Very Good | CW3: Interval
A4: Quality | B4: Poor - | C4: Very Good | D4: Midpt | F4: Quality | G4: Poor - | H4: Very Good | I4: Midpt | K4: Quality | L4: Poor - | M4: Very Good | N4: Midpt | AQ4: Very Good | AR4: 140 | AS4: =$AS$18*$BA4+AR4 -> 145 | AT4: =$AS$18*$BA4+AS4 -> 150 | AU4: 155 | AV4: 160 | AW4: 165 | AX4: 170 | AY4: 175 | AZ4: 180 | BA4: =(AZ4-AR4)/8 -> 5 | BC4: Very Good | BD4: 130 | BE4: =$BE$18*$BM4+BD4 -> 135 | BF4: 140 | BG4: 145 | BH4: 150 | BI4: 155 | BJ4: 160 | BK4: 165 | BL4: 170 | BM4: =(BL4-BD4)/8 -> 5 | BO4: Very Good | BP4: 125 | BQ4: =$BQ$18*$BY4+BP4 -> 130 | BR4: 135 | BS4: 140 | BT4: 145 | BU4: 150 | BV4: 155 | BW4: 160 | BX4: 165 | BY4: =(BX4-BP4)/8 -> 5 | CA4: Very Good | CB4: 115 | CC4: =$CC$18*$CK4+CB4 -> 121.25 | CD4: 127.5 | CE4: 133.75 | CF4: 140 | CG4: 146.25 | CH4: 152.5 | CI4: 158.75 | CJ4: 165 | CK4: =(CJ4-CB4)/8 -> 6.25 | CM4: Very Good | CN4: 60 | CO4: =$CO$18*$CW4+CN4 -> 63.75 | CP4: 67.5 | CQ4: 71.25 | CR4: 75 | CS4: 78.75 | CT4: 82.5 | CU4: 86.25 | CV4: 90 | CW4: =(CV4-CN4)/8 -> 3.75
A5: Very Good | B5: 140 | C5: 180 | D5: 160 | F5: Very Good | G5: 130 | H5: 170 | I5: 150 | K5: Very Good | L5: 125 | M5: 165 | N5: 145 | AQ5: Very Good - | AR5: =(AR4-AR7)/3*2+AR7 -> 126.6666667 | AS5: =$AS$18*$BA5+AR5 -> 131.25 | AT5: 135.8333333 | AU5: 140.4166667 | AV5: 145 | AW5: 149.5833333 | AX5: 154.1666667 | AY5: 158.75 | AZ5: =(AZ4-AZ7)/3*2+AZ7 -> 163.3333333 | BA5: =(AZ5-AR5)/8 -> 4.583333333 | BC5: Very Good - | BD5: =(BD4-BD7)/3*2+BD7 -> 118.3333333 | BE5: 123.125 | BF5: 127.9166667 | BG5: 132.7083333 | BH5: 137.5 | BI5: 142.2916667 | BJ5: 147.0833333 | BK5: 151.875 | BL5: =(BL4-BL7)/3*2+BL7 -> 156.6666667 | BM5: 4.791666667 | BO5: Very Good - | BP5: =(BP4-BP7)/3*2+BP7 -> 115 | BQ5: 119.5833333 | BR5: 124.1666667 | BS5: 128.75 | BT5: 133.3333333 | BU5: 137.9166667 | BV5: 142.5 | BW5: 147.0833333 | BX5: =(BX4-BX7)/3*2+BX7 -> 151.6666667 | BY5: 4.583333333 | CA5: Very Good - | CB5: =(CB4-CB7)/3*2+CB7 -> 103.3333333 | CC5: 108.9583333 | CD5: 114.5833333 | CE5: 120.2083333 | CF5: 125.8333333 | CG5: 131.4583333 | CH5: 137.0833333 | CI5: 142.7083333 | CJ5: =(CJ4-CJ7)/3*2+CJ7 -> 148.3333333 | CK5: 5.625 | CM5: Very Good - | CN5: =(CN4-CN7)/3*2+CN7 -> 53.33333333 | CO5: 56.66666667 | CP5: 60 | CQ5: 63.33333333 | CR5: 66.66666667 | CS5: 70 | CT5: 73.33333333 | CU5: 76.66666667 | CV5: =(CV4-CV7)/3*2+CV7 -> 80 | CW5: 3.333333333
A6: Good | B6: 100 | C6: 130 | D6: 115 | F6: Good | G6: 95 | H6: 130 | I6: 115 | K6: Good | L6: 95 | M6: 125 | N6: 110 | AQ6: Good + | AR6: =(AR4-AR7)/3*1+AR7 -> 113.3333333 | AS6: 117.5 | AT6: 121.6666667 | AU6: 125.8333333 | AV6: 130 | AW6: 134.1666667 | AX6: 138.3333333 | AY6: 142.5 | AZ6: =(AZ4-AZ7)/3*1+AZ7 -> 146.6666667 | BA6: 4.166666667 | BC6: Good + | BD6: =(BD4-BD7)/3*1+BD7 -> 106.6666667 | BE6: 111.25 | BF6: 115.8333333 | BG6: 120.4166667 | BH6: 125 | BI6: 129.5833333 | BJ6: 134.1666667 | BK6: 138.75 | BL6: =(BL4-BL7)/3*1+BL7 -> 143.3333333 | BM6: 4.583333333 | BO6: Good + | BP6: =(BP4-BP7)/3*1+BP7 -> 105 | BQ6: 109.1666667 | BR6: 113.3333333 | BS6: 117.5 | BT6: 121.6666667 | BU6: 125.8333333 | BV6: 130 | BW6: 134.1666667 | BX6: =(BX4-BX7)/3*1+BX7 -> 138.3333333 | BY6: 4.166666667 | CA6: Good + | CB6: =(CB4-CB7)/3*1+CB7 -> 91.66666667 | CC6: 96.66666667 | CD6: 101.6666667 | CE6: 106.6666667 | CF6: 111.6666667 | CG6: 116.6666667 | CH6: 121.6666667 | CI6: 126.6666667 | CJ6: =(CJ4-CJ7)/3*1+CJ7 -> 131.6666667 | CK6: 5 | CM6: Good + | CN6: =(CN4-CN7)/3*1+CN7 -> 46.66666667 | CO6: 49.58333333 | CP6: 52.5 | CQ6: 55.41666667 | CR6: 58.33333333 | CS6: 61.25 | CT6: 64.16666667 | CU6: 67.08333333 | CV6: =(CV4-CV7)/3*1+CV7 -> 70 | CW6: 2.916666667
A7: Average | B7: 75 | C7: 90 | D7: 85 | F7: Average | G7: 75 | H7: 95 | I7: 85 | K7: Average | L7: 70 | M7: 90 | N7: 80 | AQ7: Good | AR7: 100 | AS7: 103.75 | AT7: 107.5 | AU7: 111.25 | AV7: 115 | AW7: 118.75 | AX7: 122.5 | AY7: 126.25 | AZ7: 130 | BA7: 3.75 | BC7: Good | BD7: 95 | BE7: =$BE$18*$BM7+BD7 -> 99.375 | BF7: =$BE$18*$BM7+BE7 -> 103.75 | BG7: 108.125 | BH7: 112.5 | BI7: 116.875 | BJ7: 121.25 | BK7: 125.625 | BL7: 130 | BM7: =(BL7-BD7)/8 -> 4.375 | BO7: Good | BP7: 95 | BQ7: =$BQ$18*$BY7+BP7 -> 98.75 | BR7: =$BQ$18*$BY7+BQ7 -> 102.5 | BS7: 106.25 | BT7: 110 | BU7: 113.75 | BV7: 117.5 | BW7: 121.25 | BX7: 125 | BY7: =(BX7-BP7)/8 -> 3.75 | CA7: Good | CB7: 80 | CC7: =$CC$18*$CK7+CB7 -> 84.375 | CD7: =$CC$18*$CK7+CC7 -> 88.75 | CE7: 93.125 | CF7: 97.5 | CG7: 101.875 | CH7: 106.25 | CI7: 110.625 | CJ7: 115 | CK7: =(CJ7-CB7)/8 -> 4.375 | CM7: Good | CN7: 40 | CO7: =$CO$18*$CW7+CN7 -> 42.5 | CP7: =$CO$18*$CW7+CO7 -> 45 | CQ7: 47.5 | CR7: 50 | CS7: 52.5 | CT7: 55 | CU7: 57.5 | CV7: 60 | CW7: =(CV7-CN7)/8 -> 2.5
A8: Fair | B8: 50 | C8: 75 | D8: 65 | F8: Fair | G8: 50 | H8: 75 | I8: 65 | K8: Fair | L8: 45 | M8: 70 | N8: 60 | AQ8: Good - | AR8: =(AR7-AR10)/3*2+AR10 -> 91.66666667 | AS8: 94.79166667 | AT8: 97.91666667 | AU8: 101.0416667 | AV8: 104.1666667 | AW8: 107.2916667 | AX8: 110.4166667 | AY8: 113.5416667 | AZ8: =(AZ7-AZ10)/3*2+AZ10 -> 116.6666667 | BA8: 3.125 | BC8: Good - | BD8: =(BD7-BD10)/3*2+BD10 -> 88.33333333 | BE8: =$BE$18*$BM8+BD8 -> 92.08333333 | BF8: 95.83333333 | BG8: 99.58333333 | BH8: 103.3333333 | BI8: 107.0833333 | BJ8: 110.8333333 | BK8: 114.5833333 | BL8: =(BL7-BL10)/3*2+BL10 -> 118.3333333 | BM8: =(BL8-BD8)/8 -> 3.75 | BO8: Good - | BP8: =(BP7-BP10)/3*2+BP10 -> 86.66666667 | BQ8: =$BQ$18*$BY8+BP8 -> 90 | BR8: 93.33333333 | BS8: 96.66666667 | BT8: 100 | BU8: 103.3333333 | BV8: 106.6666667 | BW8: 110 | BX8: =(BX7-BX10)/3*2+BX10 -> 113.3333333 | BY8: =(BX8-BP8)/8 -> 3.333333333 | CA8: Good - | CB8: =(CB7-CB10)/3*2+CB10 -> 71.66666667 | CC8: =$CC$18*$CK8+CB8 -> 75.625 | CD8: 79.58333333 | CE8: 83.54166667 | CF8: 87.5 | CG8: 91.45833333 | CH8: 95.41666667 | CI8: 99.375 | CJ8: =(CJ7-CJ10)/3*2+CJ10 -> 103.3333333 | CK8: =(CJ8-CB8)/8 -> 3.958333333 | CM8: Good - | CN8: =(CN7-CN10)/3*2+CN10 -> 35 | CO8: =$CO$18*$CW8+CN8 -> 37.08333333 | CP8: 39.16666667 | CQ8: 41.25 | CR8: 43.33333333 | CS8: 45.41666667 | CT8: 47.5 | CU8: 49.58333333 | CV8: =(CV7-CV10)/3*2+CV10 -> 51.66666667 | CW8: =(CV8-CN8)/8 -> 2.083333333
A9: Low | B9: 30 | C9: 50 | D9: 40 | F9: Low | G9: 25 | H9: 50 | I9: 40 | K9: Low | L9: 25 | M9: 45 | N9: 35 | T9: V Lookup Tables | AQ9: Average + | AR9: =(AR7-AR10)/3*1+AR10 -> 83.33333333 | AS9: 85.83333333 | AT9: 88.33333333 | AU9: 90.83333333 | AV9: 93.33333333 | AW9: 95.83333333 | AX9: 98.33333333 | AY9: 100.8333333 | AZ9: =(AZ7-AZ10)/3*1+AZ10 -> 103.3333333 | BA9: 2.5 | BC9: Average + | BD9: =(BD7-BD10)/3*1+BD10 -> 81.66666667 | BE9: 84.79166667 | BF9: 87.91666667 | BG9: 91.04166667 | BH9: 94.16666667 | BI9: 97.29166667 | BJ9: 100.4166667 | BK9: 103.5416667 | BL9: =(BL7-BL10)/3*1+BL10 -> 106.6666667 | BM9: 3.125 | BO9: Average + | BP9: =(BP7-BP10)/3*1+BP10 -> 78.33333333 | BQ9: 81.25 | BR9: 84.16666667 | BS9: 87.08333333 | BT9: 90 | BU9: 92.91666667 | BV9: 95.83333333 | BW9: 98.75 | BX9: =(BX7-BX10)/3*1+BX10 -> 101.6666667 | BY9: =(BX9-BP9)/8 -> 2.916666667 | CA9: Average + | CB9: =(CB7-CB10)/3*1+CB10 -> 63.33333333 | CC9: 66.875 | CD9: 70.41666667 | CE9: 73.95833333 | CF9: 77.5 | CG9: 81.04166667 | CH9: 84.58333333 | CI9: 88.125 | CJ9: =(CJ7-CJ10)/3*1+CJ10 -> 91.66666667 | CK9: =(CJ9-CB9)/8 -> 3.541666667 | CM9: Average + | CN9: =(CN7-CN10)/3*1+CN10 -> 30 | CO9: 31.66666667 | CP9: 33.33333333 | CQ9: 35 | CR9: 36.66666667 | CS9: 38.33333333 | CT9: 40 | CU9: 41.66666667 | CV9: =(CV7-CV10)/3*1+CV10 -> 43.33333333 | CW9: =(CV9-CN9)/8 -> 1.666666667
B10: poor - | C10: very good | G10: poor - | H10: very good | L10: poor - | M10: very good | AQ10: Average | AR10: 75 | AS10: 76.875 | AT10: 78.75 | AU10: 80.625 | AV10: 82.5 | AW10: 84.375 | AX10: 86.25 | AY10: 88.125 | AZ10: 90 | BA10: 1.875 | BC10: Average | BD10: 75 | BE10: 77.5 | BF10: 80 | BG10: 82.5 | BH10: 85 | BI10: 87.5 | BJ10: 90 | BK10: 92.5 | BL10: 95 | BM10: 2.5 | BO10: Average | BP10: 70 | BQ10: 72.5 | BR10: 75 | BS10: 77.5 | BT10: 80 | BU10: 82.5 | BV10: 85 | BW10: 87.5 | BX10: 90 | BY10: 2.5 | CA10: Average | CB10: 55 | CC10: 58.125 | CD10: 61.25 | CE10: 64.375 | CF10: 67.5 | CG10: 70.625 | CH10: 73.75 | CI10: 76.875 | CJ10: 80 | CK10: 3.125 | CM10: Average | CN10: 25 | CO10: 26.25 | CP10: 27.5 | CQ10: 28.75 | CR10: 30 | CS10: 31.25 | CT10: 32.5 | CU10: 33.75 | CV10: 35 | CW10: 1.25
A11: Variations of Non-Steam Flake Facilities | U11: column 2 | X11: column 5 | AA11: column 8 | AD11: column 11 | AG11: column 14 | AN11: Vlookup Columns | AQ11: Average - | AR11: =(AR10-AR13)/3*2+AR13 -> 66.66666667 | AS11: 68.95833333 | AT11: 71.25 | AU11: 73.54166667 | AV11: 75.83333333 | AW11: 78.125 | AX11: 80.41666667 | AY11: 82.70833333 | AZ11: =(AZ10-AZ13)/3*2+AZ13 -> 85 | BA11: 2.291666667 | BC11: Average - | BD11: =(BD10-BD13)/3*2+BD13 -> 66.66666667 | BE11: 69.375 | BF11: 72.08333333 | BG11: 74.79166667 | BH11: 77.5 | BI11: 80.20833333 | BJ11: 82.91666667 | BK11: 85.625 | BL11: =(BL10-BL13)/3*2+BL13 -> 88.33333333 | BM11: 2.708333333 | BO11: Average - | BP11: =(BP10-BP13)/3*2+BP13 -> 61.66666667 | BQ11: 64.375 | BR11: 67.08333333 | BS11: 69.79166667 | BT11: 72.5 | BU11: 75.20833333 | BV11: 77.91666667 | BW11: 80.625 | BX11: =(BX10-BX13)/3*2+BX13 -> 83.33333333 | BY11: 2.708333333 | CA11: Average - | CB11: =(CB10-CB13)/3*2+CB13 -> 50 | CC11: 52.70833333 | CD11: 55.41666667 | CE11: 58.125 | CF11: 60.83333333 | CG11: 63.54166667 | CH11: 66.25 | CI11: 68.95833333 | CJ11: =(CJ10-CJ13)/3*2+CJ13 -> 71.66666667 | CK11: 2.708333333 | CM11: Average - | CN11: =(CN10-CN13)/3*2+CN13 -> 21.66666667 | CO11: 22.91666667 | CP11: 24.16666667 | CQ11: 25.41666667 | CR11: 26.66666667 | CS11: 27.91666667 | CT11: 29.16666667 | CU11: 30.41666667 | CV11: =(CV10-CV13)/3*2+CV13 -> 31.66666667 | CW11: 1.25
A12: Dry Roll Mill Facility | F12: Minimum Feed Processing Facility | K12: Commercial Quality Ratings | U12: Weigh and Mix/Full Batch in Mill | X12: Weigh System in Mill, Mix Batch in Feed Truck | AA12: Bunker System—Weigh and Mix Batch in Feed-Truck | AD12: Dry Roll Mill Facility | AG12: Minimum Feed Processing Facility | AK12: Physical Condition | AL12: Steps | AN12: Table | AO12: Column | AQ12: Fair + | AR12: =(AR10-AR13)/3*1+AR13 -> 58.33333333 | AS12: 61.04166667 | AT12: 63.75 | AU12: 66.45833333 | AV12: 69.16666667 | AW12: 71.875 | AX12: 74.58333333 | AY12: 77.29166667 | AZ12: =(AZ10-AZ13)/3*1+AZ13 -> 80 | BA12: 2.708333333 | BC12: Fair + | BD12: =(BD10-BD13)/3*1+BD13 -> 58.33333333 | BE12: 61.25 | BF12: 64.16666667 | BG12: 67.08333333 | BH12: 70 | BI12: 72.91666667 | BJ12: 75.83333333 | BK12: 78.75 | BL12: =(BL10-BL13)/3*1+BL13 -> 81.66666667 | BM12: 2.916666667 | BO12: Fair + | BP12: =(BP10-BP13)/3*1+BP13 -> 53.33333333 | BQ12: 56.25 | BR12: 59.16666667 | BS12: 62.08333333 | BT12: 65 | BU12: 67.91666667 | BV12: 70.83333333 | BW12: 73.75 | BX12: =(BX10-BX13)/3*1+BX13 -> 76.66666667 | BY12: 2.916666667 | CA12: Fair + | CB12: =(CB10-CB13)/3*1+CB13 -> 45 | CC12: 47.29166667 | CD12: 49.58333333 | CE12: 51.875 | CF12: 54.16666667 | CG12: 56.45833333 | CH12: 58.75 | CI12: 61.04166667 | CJ12: =(CJ10-CJ13)/3*1+CJ13 -> 63.33333333 | CK12: 2.291666667 | CM12: Fair + | CN12: =(CN10-CN13)/3*1+CN13 -> 18.33333333 | CO12: 19.58333333 | CP12: 20.83333333 | CQ12: 22.08333333 | CR12: 23.33333333 | CS12: 24.58333333 | CT12: 25.83333333 | CU12: 27.08333333 | CV12: =(CV10-CV13)/3*1+CV13 -> 28.33333333 | CW12: 1.25
B13: Condition | G13: Condition | K13: Very Good | L13: 4 | M13: Very Good | T13: Quality | U13: condition | AQ13: Fair | AR13: 50 | AS13: 53.125 | AT13: 56.25 | AU13: 59.375 | AV13: 62.5 | AW13: 65.625 | AX13: 68.75 | AY13: 71.875 | AZ13: 75 | BA13: 3.125 | BC13: Fair | BD13: 50 | BE13: 53.125 | BF13: 56.25 | BG13: 59.375 | BH13: 62.5 | BI13: 65.625 | BJ13: 68.75 | BK13: 71.875 | BL13: 75 | BM13: 3.125 | BO13: Fair | BP13: 45 | BQ13: 48.125 | BR13: 51.25 | BS13: 54.375 | BT13: 57.5 | BU13: 60.625 | BV13: 63.75 | BW13: 66.875 | BX13: 70 | BY13: 3.125 | CA13: Fair | CB13: 40 | CC13: 41.875 | CD13: 43.75 | CE13: 45.625 | CF13: 47.5 | CG13: 49.375 | CH13: 51.25 | CI13: 53.125 | CJ13: 55 | CK13: 1.875 | CM13: Fair | CN13: 15 | CO13: 16.25 | CP13: 17.5 | CQ13: 18.75 | CR13: 20 | CS13: 21.25 | CT13: 22.5 | CU13: 23.75 | CV13: 25 | CW13: 1.25
A14: Quality | B14: Poor - | C14: Very Good | D14: Midpt | F14: Quality | G14: Poor - | H14: Very Good | I14: Midpt | K14: Very Good - | L14: 3.67 | M14: Very Good - | R14: High | U14: Low | V14: High | W14: Diff | X14: Low | Y14: High | Z14: Diff | AA14: Low | AB14: High | AC14: Diff | AD14: Low | AE14: High | AF14: Diff | AG14: Low | AH14: High | AI14: Diff | AK14: Very Good | AL14: 8 | AN14: Steam Flake-Weigh & Mix Mill- Full Batch Mill | AO14: 2 | AQ14: Fair - | AR14: =(AR13-AR16)/3*2+AR16 -> 43.33333333 | AS14: 46.25 | AT14: 49.16666667 | AU14: 52.08333333 | AV14: 55 | AW14: 57.91666667 | AX14: 60.83333333 | AY14: 63.75 | AZ14: =(AZ13-AZ16)/3*2+AZ16 -> 66.66666667 | BA14: 2.916666667 | BC14: Fair - | BD14: =(BD13-BD16)/3*2+BD16 -> 41.66666667 | BE14: 44.79166667 | BF14: 47.91666667 | BG14: 51.04166667 | BH14: 54.16666667 | BI14: 57.29166667 | BJ14: 60.41666667 | BK14: 63.54166667 | BL14: =(BL13-BL16)/3*2+BL16 -> 66.66666667 | BM14: 3.125 | BO14: Fair - | BP14: =(BP13-BP16)/3*2+BP16 -> 38.33333333 | BQ14: 41.25 | BR14: 44.16666667 | BS14: 47.08333333 | BT14: 50 | BU14: 52.91666667 | BV14: 55.83333333 | BW14: 58.75 | BX14: =(BX13-BX16)/3*2+BX16 -> 61.66666667 | BY14: 2.916666667 | CA14: Fair - | CB14: =(CB13-CB16)/3*2+CB16 -> 33.33333333 | CC14: 35.20833333 | CD14: 37.08333333 | CE14: 38.95833333 | CF14: 40.83333333 | CG14: 42.70833333 | CH14: 44.58333333 | CI14: 46.45833333 | CJ14: =(CJ13-CJ16)/3*2+CJ16 -> 48.33333333 | CK14: 1.875 | CM14: Fair - | CN14: =(CN13-CN16)/3*2+CN16 -> 11.66666667 | CO14: 12.91666667 | CP14: 14.16666667 | CQ14: 15.41666667 | CR14: 16.66666667 | CS14: 17.91666667 | CT14: 19.16666667 | CU14: 20.41666667 | CV14: =(CV13-CV16)/3*2+CV16 -> 21.66666667 | CW14: 1.25
A15: Very Good | B15: 115 | C15: 165 | D15: 140 | F15: Very Good | G15: 60 | H15: 90 | I15: 75 | K15: Good + | L15: 3.33 | M15: Good + | T15: Very Good | U15: 130 | V15: 160 | W15: =V15-U15 -> 30 | X15: 120 | Y15: 165 | Z15: =Y15-X15 -> 45 | AA15: 125 | AB15: 165 | AC15: =AB15-AA15 -> 40 | AD15: 110 | AE15: 155 | AF15: =AE15-AD15 -> 45 | AG15: 85 | AH15: 125 | AI15: =AH15-AG15 -> 40 | AK15: Good | AL15: 7 | AN15: Steam Flake- Weigh Mill- Mix Feed Truck | AO15: 5 | AQ15: Low + | AR15: =(AR13-AR16)/3*1+AR16 -> 36.66666667 | AS15: 39.375 | AT15: 42.08333333 | AU15: 44.79166667 | AV15: 47.5 | AW15: 50.20833333 | AX15: 52.91666667 | AY15: 55.625 | AZ15: =(AZ13-AZ16)/3*1+AZ16 -> 58.33333333 | BA15: 2.708333333 | BC15: Low + | BD15: =(BD13-BD16)/3*1+BD16 -> 33.33333333 | BE15: 36.45833333 | BF15: 39.58333333 | BG15: 42.70833333 | BH15: 45.83333333 | BI15: 48.95833333 | BJ15: 52.08333333 | BK15: 55.20833333 | BL15: =(BL13-BL16)/3*1+BL16 -> 58.33333333 | BM15: 3.125 | BO15: Low + | BP15: =(BP13-BP16)/3*1+BP16 -> 31.66666667 | BQ15: 34.375 | BR15: 37.08333333 | BS15: 39.79166667 | BT15: 42.5 | BU15: 45.20833333 | BV15: 47.91666667 | BW15: 50.625 | BX15: =(BX13-BX16)/3*1+BX16 -> 53.33333333 | BY15: 2.708333333 | CA15: Low + | CB15: =(CB13-CB16)/3*1+CB16 -> 26.66666667 | CC15: 28.54166667 | CD15: 30.41666667 | CE15: 32.29166667 | CF15: 34.16666667 | CG15: 36.04166667 | CH15: 37.91666667 | CI15: 39.79166667 | CJ15: =(CJ13-CJ16)/3*1+CJ16 -> 41.66666667 | CK15: 1.875 | CM15: Low + | CN15: =(CN13-CN16)/3*1+CN16 -> 8.333333333 | CO15: 9.583333333 | CP15: 10.83333333 | CQ15: 12.08333333 | CR15: 13.33333333 | CS15: 14.58333333 | CT15: 15.83333333 | CU15: 17.08333333 | CV15: =(CV13-CV16)/3*1+CV16 -> 18.33333333 | CW15: 1.25
A16: Good | B16: 80 | C16: 115 | D16: 100 | F16: Good | G16: 40 | H16: 60 | I16: 50 | K16: Good | L16: 3 | M16: Good | T16: Good | U16: 90 | V16: 120 | W16: =V16-U16 -> 30 | X16: 90 | Y16: 120 | Z16: 30 | AA16: 100 | AB16: 130 | AC16: 30 | AD16: 70 | AE16: 105 | AF16: 35 | AG16: 50 | AH16: 80 | AI16: 30 | AK16: Average + | AL16: 6 | AN16: Steam Flake- Bunker System- Weigh & Mix Feed Truck | AO16: 8 | AQ16: Low | AR16: 30 | AS16: 32.5 | AT16: 35 | AU16: 37.5 | AV16: 40 | AW16: 42.5 | AX16: 45 | AY16: 47.5 | AZ16: 50 | BA16: 2.5 | BC16: Low | BD16: 25 | BE16: 28.125 | BF16: 31.25 | BG16: 34.375 | BH16: 37.5 | BI16: 40.625 | BJ16: 43.75 | BK16: 46.875 | BL16: 50 | BM16: 3.125 | BO16: Low | BP16: 25 | BQ16: 27.5 | BR16: 30 | BS16: 32.5 | BT16: 35 | BU16: 37.5 | BV16: 40 | BW16: 42.5 | BX16: 45 | BY16: 2.5 | CA16: Low | CB16: 20 | CC16: 21.875 | CD16: 23.75 | CE16: 25.625 | CF16: 27.5 | CG16: 29.375 | CH16: 31.25 | CI16: 33.125 | CJ16: 35 | CK16: 1.875 | CM16: Low | CN16: 5 | CO16: 6.25 | CP16: 7.5 | CQ16: 8.75 | CR16: 10 | CS16: 11.25 | CT16: 12.5 | CU16: 13.75 | CV16: 15 | CW16: 1.25
A17: Average | B17: 55 | C17: 80 | D17: 70 | F17: Average | G17: 25 | H17: 35 | I17: 30 | K17: Good - | L17: 2.67 | M17: Good - | T17: Average | U17: 70 | V17: 85 | W17: 15 | X17: 75 | Y17: 95 | Z17: 20 | AA17: 80 | AB17: 95 | AC17: 15 | AD17: 50 | AE17: 75 | AF17: 25 | AG17: 35 | AH17: 45 | AI17: 10 | AK17: Average | AL17: 5 | AN17: Dry Roll- Weigh & Mix Feed Truck | AO17: 11 | AQ17: Low - | AR17: =AR16-((AR13-AR16)/3) -> 23.33333333 | AS17: 25.625 | AT17: 27.91666667 | AU17: 30.20833333 | AV17: 32.5 | AW17: 34.79166667 | AX17: 37.08333333 | AY17: 39.375 | AZ17: =AZ16-((AZ13-AZ16)/3) -> 41.66666667 | BA17: =(AZ17-AR17)/8 -> 2.291666667 | BC17: Low - | BD17: =BD16-(BD13-BD16)/3 -> 16.66666667 | BE17: 19.79166667 | BF17: 22.91666667 | BG17: 26.04166667 | BH17: 29.16666667 | BI17: 32.29166667 | BJ17: 35.41666667 | BK17: 38.54166667 | BL17: =BL16-(BL13-BL16)/3 -> 41.66666667 | BM17: =(BL17-BD17)/8 -> 3.125 | BO17: Low - | BP17: =BP16-(BP13-BP16)/3 -> 18.33333333 | BQ17: 20.625 | BR17: 22.91666667 | BS17: 25.20833333 | BT17: 27.5 | BU17: 29.79166667 | BV17: 32.08333333 | BW17: 34.375 | BX17: =BX16-(BX13-BX16)/3 -> 36.66666667 | BY17: 2.291666667 | CA17: Low - | CB17: =CB16-(CB13-CB16)/3 -> 13.33333333 | CC17: =$CC$18*$CK17+CB17 -> 15.20833333 | CD17: =$CC$18*$CK17+CC17 -> 17.08333333 | CE17: 18.95833333 | CF17: 20.83333333 | CG17: 22.70833333 | CH17: 24.58333333 | CI17: 26.45833333 | CJ17: =CJ16-(CJ13-CJ16)/3 -> 28.33333333 | CK17: =(CJ17-CB17)/8 -> 1.875 | CM17: Low - | CN17: =CN16-(CN13-CN16)/3 -> 1.666666667 | CO17: 2.916666667 | CP17: 4.166666667 | CQ17: 5.416666667 | CR17: 6.666666667 | CS17: 7.916666667 | CT17: 9.166666667 | CU17: 10.41666667 | CV17: =CV16-(CV13-CV16)/3 -> 11.66666667 | CW17: =(CV17-CN17)/8 -> 1.25
A18: Fair | B18: 40 | C18: 55 | D18: 50 | F18: Fair | G18: 15 | H18: 25 | I18: 20 | K18: Average + | L18: 2.33 | M18: Average + | T18: Fair | U18: 40 | V18: 65 | W18: 25 | X18: 45 | Y18: 65 | Z18: 20 | AA18: 45 | AB18: 70 | AC18: 25 | AD18: 35 | AE18: 45 | AF18: 10 | AG18: 15 | AH18: 30 | AI18: 15 | AK18: Average - | AL18: 4 | AN18: Min Feed Process- No Mill Facility | AO18: 14 | AQ18: Number of Steps | AS18: 1 | AT18: =AS18+1 -> 2 | AU18: =AT18+1 -> 3 | AV18: 4 | AW18: 5 | AX18: 6 | AY18: 7 | BC18: Number of Steps | BE18: 1 | BF18: 2 | BG18: 3 | BH18: 4 | BI18: 5 | BJ18: 6 | BK18: 7 | BO18: Number of Steps | BQ18: 1 | BR18: 2 | BS18: 3 | BT18: 4 | BU18: 5 | BV18: 6 | BW18: 7 | CA18: Number of Steps | CC18: 1 | CD18: 2 | CE18: 3 | CF18: 4 | CG18: 5 | CH18: 6 | CI18: 7 | CM18: Number of Steps | CO18: 1 | CP18: 2 | CQ18: 3 | CR18: 4 | CS18: 5 | CT18: 6 | CU18: 7
A19: Low | B19: 20 | C19: 35 | D19: 30 | F19: Low | G19: 5 | H19: 15 | I19: 10 | K19: Average | L19: 2 | M19: Average | T19: Low | U19: 25 | V19: 45 | W19: 20 | X19: 20 | Y19: 45 | Z19: 25 | AA19: 25 | AB19: 45 | AC19: 20 | AD19: 15 | AE19: 25 | AF19: 10 | AG19: 5 | AH19: 15 | AI19: 10 | AK19: Fair | AL19: 3 | AQ19: 1 | BC19: 13 | BO19: 25 | CA19: 37 | CM19: 49
B20: poor - | C20: very good | G20: poor - | H20: very good | K20: Average - | L20: 1.67 | M20: Average - | AK20: Fair - | AL20: 2
A21: Added very good category interpolation for 2026 on all mill type facilities besides weight and mix/full batch in mill | K21: Fair + | L21: 1.33 | M21: Fair + | AK21: Poor | AL21: 1 | BC21: Condition Ratings | BF21: Vlookup Columns
A22: Land Values | K22: Fair | L22: 1 | M22: Fair | R22: Low | AK22: Poor - | AL22: 0 | BC22: Very Good | BD22: 10 | BF22: Table | BG22: Column
A23: KS Ag Land Values & Trends - Pasture/Hay | K23: Fair - | L23: 0.84 | M23: Fair - | BC23: Good | BD23: 9 | BF23: Steam Flake-Weigh & Mix Mill-Full Batch Mill | BG23: 1
A24: Northwest 10 | B24: 1689 | K24: Low + | L24: 0.7 | M24: Low + | O24: H | T24: M&S Const Class | U24: Cattle Pen Types | X24: Cattle Pen M&S Components- separated | AA24: Cattle Pen M&S Comp combo | AE24: Improvement Type | AG24: Improvement M&S Occupancies-sort | AM24: Improvement M&S Occupancies-numeric | AP24: Alpha # combined | BC24: Average + | BD24: 8 | BF24: Steam Flake- Weigh Mill- Mix Feed Truck/Stationary Mixer | BG24: 13
A25: North Central 40 | B25: 2496 | K25: Low | L25: 0.6 | M25: Low | O25: 0.6 | T25: C - Masonry Bearing | U25: Pen Fencing | X25: 1104 | Y25: Feeder, Fenceline, 8' Long | AA25: Feeder, Fenceline, 8' Long- 1104 | AE25: Barn | AH25: Barn | AI25: 305 | AJ25: Barn | AM25: 133 | AN25: Prefabricated Storage Shed | AP25: Arena Shelter- 184 | BC25: Average | BD25: 7 | BF25: Steam Flake- Bunker System- Weigh & Mix Feed Truck/Stationary Mixer | BG25: 25
A26: Northeast 70 | B26: 4679 | K26: Low - | L26: 0.5 | M26: Low - | O26: 0.7 | T26: D - Wood or Steel Stud | U26: Size & Drainage | X26: 1105 | Y26: Feeder, Fenceline, Each Additional 8' | AA26: Feeder, Fenceline, Each Additional 8'- 1105 | AE26: Building- Equipment, Storage, Utility | AM26: 174 | AN26: Pavilon | AP26: Arena, Horse- 428 | BC26: Average - | BD26: 6 | BF26: Dry Roll- Weigh & Mix Feed Truck | BG26: 37
A27: West Central 20 | B27: 1348 | O27: 0.84 | T27: H - Hoop Frame | U27: Bunks, Aprons, Headrails | X27: 1120 | Y27: Feeder, Feed Rack | AA27: Feeding Trough, 1-Sided, Concrete- 1130 | AE27: Hospital | AM27: 184 | AN27: Arena Shelter | AP27: Barn- 305 | BC27: Fair | BD27: 5 | BF27: Min Feed Process- No Mill Facility | BG27: 49
A28: Central 50 | B28: 2376 | K28: Physical Condition Ratings | O28: 1 | T28: P - Pole Frame (Wood) | U28: Waterers, Slabs | X28: 1130 | Y28: Feeding Trough, 1-Sided, Concrete | AA28: Feeding Trough, 2-Sided, Concrete- 1133 | AE28: Office | AI28: 469 | AJ28: Barn, Freestall | AM28: 305 | AN28: Barn | AP28: Barn, Feeder- 561 | BC28: Fair - | BD28: 4
A29: East Central 80 | B29: 3954 | K29: Very Good | L29: 4.5 | M29: Very Good | O29: 1.33 | T29: S - Metal Frame | U29: Corrals, Working Facilities | X29: 1131 | Y29: Feeding Trough, 1-Sided, Steel | AA29: Feeding Trough, Roof, Metal Structure-1136 | AE29: Quonset | AI29: 561 | AJ29: Barn, Feeder | AM29: 378 | AN29: Stable | AP29: Cabin, Transient Labor- 394 | BC29: Poor | BD29: 3
A30: Southwest 30 | B30: 1475 | K30: Good | L30: 4 | M30: Good | O30: 1.67 | T30: W - Metal Slant Frame | U30: Other | X30: 1132 | Y30: Feeding Trough, 1-Sided, Wood | AA30: Feeding Trough, Roof, Wood Structure- 1137 | AE30: Scales | AM30: 391 | AN30: Material Storage Building | AP30: Commercial Utility Building, Light- 471 | BC30: Poor - | BD30: 2
A31: South Central 60 | B31: 2368 | K31: Average + | L31: 3.5 | M31: Average + | O31: =O28+1 -> 2 | X31: 1133 | Y31: Feeding Trough, 2-Sided, Concrete | AA31: Fence, 8’ Gate- 1390 | AE31: Shed- Equipment, Storage, Utility | AH31: Building | AI31: 391 | AJ31: Material Storage Building | AP31: Commercial Utility, Arch-Rib, Quonset- 555
A32: Southeast 90 | B32: 3219 | K32: Average | L32: 3 | M32: Average | O32: =O29+1 -> 2.33 | T32: Feed Storage Type | X32: 1134 | Y32: Feeding Trough, 2-Sided, Steel | AA32: Fence, Gate, Each Additional 4’- 1391 | AE32: Shelter | AI32: 406 | AJ32: Storage Warehouse | AM32: 394 | AN32: Cabin, Transient Labor | AP32: Corn Crib Building- 524
K33: Average - | L33: 2.5 | M33: Average - | O33: 2.67 | T33: Grain | X33: 1135 | Y33: Feeding Trough, 2-Sided, Wood | AA33: Fence, Pipe, Cable Rails- 1387 | AE33: Other | AI33: 421 | AJ33: Grain Storage, Utility | AM33: 406 | AN33: Storage Warehouse | AP33: Equipment (Shop) Building- 470
A34: KSU- KS Ag Land Values & Trends | K34: Fair | L34: 2 | M34: Fair | O34: 3 | T34: High Moisture Corn | X34: 1136 | Y34: Feeding Trough, Roof, Metal Structure | AA34: Fence, Pipe, Pipe Rails- 1388 | AI34: 470 | AJ34: Equipment (Shop) Building | AM34: 421 | AN34: Grain Storage, Utility | AP34: Equipment Shed- 472
A35: Publication | B35: Feedlot Guide Use | K35: Fair - | L35: 1.5 | M35: Fair - | O35: 3.33 | T35: Ensilage | X35: 1137 | Y35: Feeding Trough, Roof, Wood Structure | AA35: Floor-Type Flooding Flush System- 1184 | AI35: 471 | AJ35: Commercial Utility Building, Light | AP35: Farm Commodity Storage Shed- 562
A36: 2024 | B36: 2026 | K36: Poor | L36: 1 | M36: Poor | O36: 3.67 | T36: Hay | X36: 1138 | Y36: Sloped Feed Rail Guard, Galvanized | AA36: Liquid Manure Tank, Concrete Rectangular- 1170 | AI36: 476 | AJ36: Farm Implement Building | AM36: 428 | AN36: Arena, Horse | AP36: Farm Implement Arch-Rib, Quonset- 558
K37: Poor - | L37: 0.5 | M37: Poor - | O37: 4 | T37: Protein | X37: 1139 | Y37: Sloped Feed Rail Guard, Zinc Coated | AA37: Liquid Manure Tank, Concrete Round- 1171 | AI37: 477 | AJ37: Farm Utility Building | AM37: 456 | AN37: Tool Shed | AP37: Farm Implement Building- 476
T38: Fat & Molasses | X38: 1140 | Y38: Headrail, Double Swing Self-Locking | AA38: Liquid Manure Tank, No Cover- 1172 | AI38: 493 | AJ38: Grain Storage, Flathouse | AM38: 468 | AN38: Material Storage Shed | AP38: Farm Implement Shed- 478
T39: Other | X39: 1150 | Y39: Watering Trough, Concrete | AA39: Manure, Clay Lagoon- 1176 | AI39: 524 | AJ39: Corn Crib Building | AM39: 469 | AN39: Freestall Barn | AP39: Farm Sun Shade Shelter- 566
X40: 1151 | Y40: Watering Trough, Steel | AA40: Manure, Concrete Open Pit- 1175 | AM40: 470 | AN40: Equipment (Shop) Building | AP40: Farm Utility Arch-Rib, Quonset- 557
S41: Feed Storage Components | U41: Feed Storage Components- combo | X41: 1152 | Y41: Watering Tank, Galvanized | AA41: Paved Transfer Lane with Curbing- 1386 | AH41: Hospital | AI41: 305 | AJ41: Barn | AM41: 471 | AN41: Commercial Utility Building, Light | AP41: Farm Utility Building- 477
R42: 1600 | S42: Grain Elevator, Wood Crib, Metal Clad | U42: Bucket Elevator 1,000 to 8,000 Bu/Hr- 1604 | X42: 1170 | Y42: Liquid Manure Tank, Concrete Rectangular | AA42: Paved Transfer Lane without Curbing- 1385 | AI42: 469 | AJ42: Barn, Freestall | AM42: 472 | AN42: Equipment Shed | AP42: Farm Utility Shelter- 565
R43: 1601 | S43: Elevator Annex, Wood Crib, Metal Clad | U43: Bucket Elevator 500 to 999 Bu/Hr- 1608 | X43: 1171 | Y43: Liquid Manure Tank, Concrete Round | AA43: Slurry Tank, Concrete Slab- 1179 | AM43: 473 | AN43: Material Shelter | AP43: Farm Utility Storage Shed- 479
R44: 1602 | S44: Grain Elevator, Slip Form Concrete | U44: Bucket Elevator 8,001 to 10,000 Bu/Hr- 1609 | X44: 1172 | Y44: Liquid Manure Tank, No Cover | AA44: Stock Corral Gate- 1246 | AM44: 476 | AN44: Farm Implement Building | AP44: Freestall Barn- 469
R45: 1603 | S45: Elevator Annex, Slip Form Concrete | U45: Bunker Silo, Tile-Up Conc, Poles/Braces- 1691 | X45: 1173 | Y45: Liquid Manure Tank, Plank Cover | AA45: Stock Corral, Cable Rails- 1241 | AM45: 477 | AN45: Farm Utility Building | AP45: Grain Storage, Flathouse- 493
R46: 1604 | S46: Bucket Elevator 1,000 to 8,000 Bu/Hr | U46: Bunker Silo, Tilt-Up Conc, Precast Walls- 1690 | X46: 1175 | Y46: Manure, Concrete Open Pit | AA46: Stock Corral, Pipe Rails- 1240 | AH46: Office | AI46: 471 | AJ46: Commercial Utility Building, Light | AM46: 478 | AN46: Farm Implement Shed | AP46: Grain Storage, Utility- 421
R47: 1608 | S47: Bucket Elevator 500 to 999 Bu/Hr | U47: Bunker Silo, Wood, Cantilevered Poles- 1692 | X47: 1176 | Y47: Manure, Clay Lagoon | AA47: Stock Corral, Split Rails, 4"x4" Posts- 1242 | AI47: 477 | AJ47: Farm Utility Building | AM47: 479 | AN47: Farm Utility Storage Shed | AP47: Lean-To, Equestrian- 560
R48: 1609 | S48: Bucket Elevator 8,001 to 10,000 Bu/Hr | U48: Elevator Annex, Slip Form Concrete- 1603 | X48: 1179 | Y48: Slurry Tank, Concrete Slab | AA48: Stock Corral, Split Rails, 6"x6" Posts- 1244 | AI48: 554 | AJ48: Office Shed | AM48: 493 | AN48: Grain Storage, Flathouse | AP48: Material Shelter- 473
R49: 1612 | S49: Receiving Pit | U49: Elevator Annex, Wood Crib, Metal Clad- 1601 | X49: 1184 | Y49: Floor-Type Flooding Flush System | AA49: Stock Corral, Wood Rails, 4"x4" Posts- 1243 | AM49: 524 | AN49: Corn Crib Building | AP49: Material Storage Building- 391
R50: 1640 | S50: Silo, Concrete Stave, 10’ - 15’ Dia. | U50: Feed Bin, Fiberglass Hopper Bottom, 10’ Dia.- 1733 | X50: 1240 | Y50: Stock Corral, Pipe Rails | AA50: Stock Corral, Wood Rails, 6"x6" Posts- 1245 | AH50: Quonset | AI50: 555 | AJ50: Commercial Utility, Arch-Rib, Quonset | AM50: 554 | AN50: Office Shed | AP50: Material Storage Shed- 468
R51: 1641 | S51: Silo, Concrete Stave, 16’ - 23’ Dia. | U51: Feed Bin, Fiberglass Hopper Bottom, 6’ Dia.- 1730 | X51: 1241 | Y51: Stock Corral, Cable Rails | AI51: 557 | AJ51: Farm Utility Arch-Rib, Quonset | AM51: 555 | AN51: Commercial Utility, Arch-Rib, Quonset | AP51: Office Shed- 554
R52: 1642 | S52: Silo, Concrete Stave, 24’ - 30’ Dia. | U52: Feed Bin, Fiberglass Hopper Bottom, 7’ Dia.- 1731 | X52: 1242 | Y52: Stock Corral, Split Rails, 4"x4" Posts | AI52: 558 | AJ52: Farm Implement Arch-Rib, Quonset | AM52: 557 | AN52: Farm Utility Arch-Rib, Quonset | AP52: Pavilon- 174
R53: 1645 | S53: Silo, Concrete Stave, No Roof, 10’ - 15' Dia. | U53: Feed Bin, Fiberglass Hopper Bottom, 8’ Dia.- 1732 | X53: 1243 | Y53: Stock Corral, Wood Rails, 4"x4" Posts | AM53: 558 | AN53: Farm Implement Arch-Rib, Quonset | AP53: Prefabricated Storage Shed- 133
R54: 1646 | S54: Silo, Concrete Stave, No Roof, 16’ - 23’ Dia. | U54: Feed Bin, Steel Hopper Bottom, 12’ Dia.- 1743 | X54: 1244 | Y54: Stock Corral, Split Rails, 6"x6" Posts | AH54: Scales | AM54: 560 | AN54: Lean-To, Equestrian | AP54: Stable- 378
R55: 1647 | S55: Silo, Concrete Stave, No Roof, 24’ - 30’ Dia. | U55: Feed Bin, Steel Hopper Bottom, 6’ Dia.- 1740 | X55: 1245 | Y55: Stock Corral, Wood Rails, 6"x6" Posts | AM55: 561 | AN55: Barn, Feeder | AP55: Storage Warehouse- 406
R56: 1650 | S56: Silo, Concrete Poured, 12’ - 15’ Dia. | U56: Feed Bin, Steel Hopper Bottom, 7’ Dia.- 1741 | X56: 1246 | Y56: Stock Corral Gate | AH56: Shed | AI56: 133 | AJ56: Prefabricated Storage Shed | AM56: 562 | AN56: Farm Commodity Storage Shed | AP56: Tool Shed- 456
R57: 1651 | S57: Silo, Concrete Poured, 16’ - 23’ Dia. | U57: Feed Bin, Steel Hopper Bottom, 9’ Dia.- 1742 | X57: 1381 | Y57: Holding Pen, Wash Area without Roof | AI57: 456 | AJ57: Tool Shed | AM57: 565 | AN57: Farm Utility Shelter
R58: 1652 | S58: Silo, Concrete Poured, 24’ - 30’ Dia. | U58: Grain Elevator, Slip Form Concrete- 1602 | X58: 1382 | Y58: Holding Pen, Wash Area with Roof | AI58: 468 | AJ58: Material Storage Shed | AM58: 566 | AN58: Farm Sun Shade Shelter
R59: 1655 | S59: Silo, Concrete Poured, No Roof, 12’ - 15’ Dia. | U59: Grain Elevator, Wood Crib, Metal Clad- 1600 | X59: 1385 | Y59: Paved Transfer Lane without Curbing | AI59: 472 | AJ59: Equipment Shed
R60: 1656 | S60: Silo, Concrete Poured, No Roof, 16’ - 23’ Dia. | U60: Hopper Bins, 7 ft diameter, 25 ft-26 ft bin height- 8511 | X60: 1386 | Y60: Paved Transfer Lane with Curbing | AI60: 478 | AJ60: Farm Implement Shed
R61: 1657 | S61: Silo, Concrete Poured, No Roof, 24’ - 30’ Dia. | U61: Hopper Bins, 7 ft diameter, 27 ft-30 ft bin height- 8512 | X61: 1387 | Y61: Fence, Pipe, Cable Rails | AI61: 479 | AJ61: Farm Utility Storage Shed
R62: 1670 | S62: Silo, Porcelain, 14’ Dia. | U62: Hopper Bins, 7 ft. Diameter, 22 ft-24 ft bin height- 8510 | X62: 1388 | Y62: Fence, Pipe, Pipe Rails | AI62: 554 | AJ62: Office Shed
R63: 1671 | S63: Silo, Porcelain, 17’ Dia. | U63: Hopper Bins, 8 ft diameter, 14 ft-16 ft bin height- 8513 | X63: 1389 | Y63: Fence, Galvanized Rub Panel | AI63: 562 | AJ63: Farm Commodity Storage Shed
R64: 1672 | S64: Silo, Porcelain, 20’ Dia. | U64: Hopper Bins, 8 ft diameter, 17 ft-19 ft bin height- 8514 | X64: 1390 | Y64: Fence, 8’ Gate
R65: 1673 | S65: Silo, Porcelain, 25’ Dia. | U65: Hopper Bins, 8 ft diameter, 20 ft-23 ft bin height- 8515 | X65: 1391 | Y65: Fence, Gate, Each Additional 4’ | AH65: Shelter | AI65: 184 | AJ65: Arena Shelter
R66: 1674 | S66: Silo, Porcelain, 31’ Dia. | U66: Hopper Bins, 8 ft diameter, 24 ft-28 ft bin height- 8516 | AI66: 473 | AJ66: Material Shelter
R67: 1675 | S67: Silo, Porcelain, Pre-Owned/Rebuilt, 14’ Dia. | U67: Receiving Pit- 1612 | AI67: 560 | AJ67: Lean-To, Equestrian
R68: 1676 | S68: Silo, Porcelain, Pre-Owned/Rebuilt, 17’ Dia. | U68: Scales, Platform-Steel Plate, 10000 lbs.- 8532 | AI68: 565 | AJ68: Farm Utility Shelter
R69: 1677 | S69: Silo, Porcelain, Pre-Owned/Rebuilt, 20’ Dia. | U69: Scales, Platform-Steel Plate, 20000 lbs.- 8533 | AI69: 566 | AJ69: Farm Sun Shade Shelter
R70: 1678 | S70: Silo, Porcelain, Pre-Owned/Rebuilt, 25’ Dia. | U70: Scales, Platform-Wood, 10000 lbs.- 8524
R71: 1679 | S71: Silo, Porcelain, Pre-Owned/Rebuilt, 31’ Dia. | U71: Scales, Platform-Wood, 20000 lbs.- 8525 | AH71: Other | AI71: 174 | AJ71: Pavilon
R72: 1690 | S72: Bunker Silo, Tilt-Up Conc, Precast Walls | U72: Silo, Concrete Poured, 12’ - 15’ Dia.- 1650
R73: 1691 | S73: Bunker Silo, Tile-Up Conc, Poles/Braces | U73: Silo, Concrete Poured, 16’ - 23’ Dia.- 1651 | AI73: 394 | AJ73: Cabin, Transient Labor
R74: 1692 | S74: Bunker Silo, Wood, Cantilevered Poles | U74: Silo, Concrete Poured, 24’ - 30’ Dia.- 1652
R75: 1695 | S75: Trench Silo, Concrete | U75: Silo, Concrete Poured, No Roof, 12’ - 15’ Dia.- 1655 | AI75: 428 | AJ75: Arena, Horse
R76: 1696 | S76: Trench Silo, Wood | U76: Silo, Concrete Poured, No Roof, 16’ - 23’ Dia.- 1656
R77: 1697 | S77: Trench Silo, Plastic Lined | U77: Silo, Concrete Poured, No Roof, 24’ - 30’ Dia.- 1657
R78: 1700 | S78: Steel Bin, without Drying, 15’ - 29’ Dia. | U78: Silo, Concrete Stave, 10’ - 15’ Dia.- 1640
R79: 1701 | S79: Steel Bin, without Drying, 30’ - 59’ Dia. | U79: Silo, Concrete Stave, 16’ - 23’ Dia.- 1641
R80: 1702 | S80: Steel Bin, without Drying, 60’ - 89’ Dia. | U80: Silo, Concrete Stave, 24’ - 30’ Dia.- 1642
R81: 1703 | S81: Steel Bin, without Drying, 90’ - 105’ Dia. | U81: Silo, Concrete Stave, No Roof, 10’ - 15' Dia.- 1645
R82: 1706 | S82: Steel Bin, with Drying, 15’ - 29’ Dia. | U82: Silo, Concrete Stave, No Roof, 16’ - 23’ Dia.- 1646
R83: 1707 | S83: Steel Bin, with Drying, 30’ - 48’ Dia. | U83: Silo, Concrete Stave, No Roof, 24’ - 30’ Dia.- 1647
R84: 1710 | S84: Steel Bin, Concrete Slab Floor | U84: Silo, Porcelain, 14’ Dia.- 1670
R85: 1716 | S85: Steel Tank | U85: Silo, Porcelain, 17’ Dia.- 1671
R86: 1720 | S86: Steel Bin, Hopper Bottom, 15’ Dia. | U86: Silo, Porcelain, 20’ Dia.- 1672
R87: 1721 | S87: Steel Bin, Hopper Bottom, 18’ Dia. | U87: Silo, Porcelain, 25’ Dia.- 1673
R88: 1722 | S88: Steel Bin, Hopper Bottom, 21’ Dia. | U88: Silo, Porcelain, 31’ Dia.- 1674
R89: 1723 | S89: Steel Bin, Hopper Bottom, 24’ Dia. | U89: Silo, Porcelain, Pre-Owned/Rebuilt, 14’ Dia.- 1675
R90: 1724 | S90: Steel Bin, Hopper Bottom, 30’ Dia. | U90: Silo, Porcelain, Pre-Owned/Rebuilt, 17’ Dia.- 1676
R91: 1730 | S91: Feed Bin, Fiberglass Hopper Bottom, 6’ Dia. | U91: Silo, Porcelain, Pre-Owned/Rebuilt, 20’ Dia.- 1677
R92: 1731 | S92: Feed Bin, Fiberglass Hopper Bottom, 7’ Dia. | U92: Silo, Porcelain, Pre-Owned/Rebuilt, 25’ Dia.- 1678
R93: 1732 | S93: Feed Bin, Fiberglass Hopper Bottom, 8’ Dia. | U93: Silo, Porcelain, Pre-Owned/Rebuilt, 31’ Dia.- 1679
R94: 1733 | S94: Feed Bin, Fiberglass Hopper Bottom, 10’ Dia. | U94: Steel Bin, Concrete Slab Floor- 1710
R95: 1740 | S95: Feed Bin, Steel Hopper Bottom, 6’ Dia. | U95: Steel Bin, Concrete Slab Floor, 1-14 ft. diameter- 8504
R96: 1741 | S96: Feed Bin, Steel Hopper Bottom, 7’ Dia. | U96: Steel Bin, Hopper Bottom, 15’ Dia.- 1720
R97: 1742 | S97: Feed Bin, Steel Hopper Bottom, 9’ Dia. | U97: Steel Bin, Hopper Bottom, 18’ Dia.- 1721
R98: 1743 | S98: Feed Bin, Steel Hopper Bottom, 12’ Dia. | U98: Steel Bin, Hopper Bottom, 21’ Dia.- 1722
R99: 1750 | S99: Cylindrical Wire Mesh Corn Crib Bin | U99: Steel Bin, Hopper Bottom, 24’ Dia.- 1723
R100: 8500 | S100: Steel Bin, without Drying, 1-14 ft.dia.,7 ft. hgt. | U100: Steel Bin, Hopper Bottom, 30’ Dia.- 1724
R101: 8501 | S101: Steel Bin, without Drying, 1-14 ft.dia.,11 ft. hgt. | U101: Steel Bin, without Drying, 1-14 ft.dia.,11 ft. hgt.- 8501
R102: 8502 | S102: Steel Bin, without Drying, 1-14 ft.dia.,15 ft. hgt. | U102: Steel Bin, without Drying, 1-14 ft.dia.,15 ft. hgt.- 8502
R103: 8503 | S103: Steel Bin, without Drying, 1-14 ft.dia.,18 ft. hgt. | U103: Steel Bin, without Drying, 1-14 ft.dia.,18 ft. hgt.- 8503
R104: 8504 | S104: Steel Bin, Concrete Slab Floor, 1-14 ft. diameter | U104: Steel Bin, without Drying, 1-14 ft.dia.,7 ft. hgt.- 8500
R105: 8506 | S105: Steel Bin, with Drying, 1-14 ft.dia.,7 ft. hgt. | U105: Steel Bin, without Drying, 15’ - 29’ Dia.- 1700
R106: 8507 | S106: Steel Bin, with Drying, 1-14 ft.dia., 11 ft. hgt. | U106: Steel Bin, without Drying, 30’ - 59’ Dia.- 1701
R107: 8508 | S107: Steel Bin, with Drying, 1-14 ft.dia., 15 ft. hgt. | U107: Steel Bin, without Drying, 60’ - 89’ Dia.- 1702
R108: 8509 | S108: Steel Bin, with Drying, 1-14 ft.dia., 18 ft. hgt. | U108: Steel Bin, without Drying, 90’ - 105’ Dia.- 1703
R109: 8510 | S109: Hopper Bins, 7 ft. Diameter, 22 ft-24 ft bin height | U109: Steel Tank- 1716
R110: 8511 | S110: Hopper Bins, 7 ft diameter, 25 ft-26 ft bin height | U110: Trench Silo, Concrete- 1695
R111: 8512 | S111: Hopper Bins, 7 ft diameter, 27 ft-30 ft bin height | U111: Trench Silo, Wood- 1696
R112: 8513 | S112: Hopper Bins, 8 ft diameter, 14 ft-16 ft bin height
R113: 8514 | S113: Hopper Bins, 8 ft diameter, 17 ft-19 ft bin height
R114: 8515 | S114: Hopper Bins, 8 ft diameter, 20 ft-23 ft bin height
R115: 8516 | S115: Hopper Bins, 8 ft diameter, 24 ft-28 ft bin height
R116: 8517 | S116: Grain Bin Vent. Floor, 18 ft-48 ft diam, 19 ft-59 ft bin hgt
R117: 8524 | S117: Scales, Platform-Wood, 10000 lbs.
R118: 8525 | S118: Scales, Platform-Wood, 20000 lbs.
R119: 8532 | S119: Scales, Platform-Steel Plate, 10000 lbs.
R120: 8533 | S120: Scales, Platform-Steel Plate, 20000 lbs.
R122: Quality Ratings
R123: USED THIS LIST FOR 2025
R125: Very Good | S125: 4 | T125: Very Good
R126: Good | S126: 3 | T126: Good
R127: Average | S127: 2 | T127: Average
R128: Fair | S128: 1 | T128: Fair
R129: Low | S129: 0.6 | T129: Low

Sheet Price Tbl-2026 SalesComp
A1: 2026 Guide
A3: Added very good category interpolation for 2026 | F3: BOLD AMOUNTS ARE SALES (rounded)
A4: PVD Recommended Increase for 2026 guide | F4: COMPARISON- 17 Vendor Sales-Applied to 2025 Table Relationships
A5: Weigh and Mix/Full Batch in Mill | F5: Weigh and Mix/Full Batch in Mill
B6: Low | C6: High | D6: Midpt | G6: low | H6: high | I6: midpt | J6: Sale % change from 2026 recommend (high)
A7: Very Good | B7: 140 | C7: 180 | D7: 160 | F7: Very Good | G7: 205 | H7: 255 | I7: 230 | J7: 0.4166666667
A8: Good | B8: 100 | C8: 130 | D8: 115 | F8: Good | G8: 130 | H8: 175 | I8: 155 | J8: 0.3461538462
A9: Average | B9: 75 | C9: 90 | D9: 85 | F9: Average | G9: 140 | H9: 175 | I9: 160 | J9: 0.9444444444
A10: Fair | B10: 50 | C10: 75 | D10: 65 | F10: Fair | G10: 90 | H10: 135 | I10: 115 | J10: 0.8
A11: Low | B11: 30 | C11: 50 | D11: 40 | F11: Low | G11: 60 | H11: 105 | I11: 85 | J11: 1.1
A14: Weigh System in Mill, Mix Batch in Feed Truck /Stationary Mixer | F14: Weigh System in Mill, Mix Batch in Feed Truck /Stationary Mixer
B15: Low | C15: High | D15: Midpt | G15: low | H15: high | I15: midpt | J15: Sale % change from 2026 recommend (high)
A16: Very Good | B16: 130 | C16: 170 | D16: 150 | F16: Very Good | G16: 160 | H16: 200 | I16: 180 | J16: 0.1764705882
A17: Good | B17: 95 | C17: 130 | D17: 115 | F17: Good | G17: 125 | H17: 170 | I17: 150 | J17: 0.3076923077
A18: Average | B18: 75 | C18: 95 | D18: 85 | F18: Average | G18: 95 | H18: 120 | I18: 110 | J18: 0.2631578947
A19: Fair | B19: 50 | C19: 75 | D19: 65 | F19: Fair | G19: 65 | H19: 95 | I19: 80 | J19: 0.2666666667
A20: Low | B20: 25 | C20: 50 | D20: 40 | F20: Low | G20: 35 | H20: 65 | I20: 50 | J20: 0.3
A23: Bunker System—Weigh and Mix Batch in Feed-Truck/Stationary Mixer | F23: Bunker System—Weigh and Mix Batch in Feed-Truck/Stationary Mixer
B24: Low | C24: High | D24: Midpt | G24: low | H24: high | I24: midpt | J24: Sale % change from 2026 recommend (high)
A25: Very Good | B25: 125 | C25: 165 | D25: 145 | F25: Very Good | G25: 130 | H25: 165 | I25: 150 | J25: 0
A26: Good | B26: 95 | C26: 125 | D26: 110 | F26: Good | G26: 100 | H26: 130 | I26: 115 | J26: 0.04
A27: Average | B27: 70 | C27: 90 | D27: 80 | F27: Average | G27: 75 | H27: 95 | I27: 85 | J27: 0.05555555556
A28: Fair | B28: 45 | C28: 70 | D28: 60 | F28: Fair | G28: 50 | H28: 75 | I28: 65 | J28: 0.07142857143
A29: Low | B29: 25 | C29: 45 | D29: 35 | F29: Low | G29: 25 | H29: 45 | I29: 35 | J29: 0
A32: Dry Roll Mill Facility | F32: Dry Roll Mill Facility
B33: Low | C33: High | D33: Midpt | G33: low | H33: high | I33: midpt | J33: Sale % change from 2026 recommend (high)
A34: Very Good | B34: 115 | C34: 165 | D34: 140 | F34: Very Good | G34: 130 | H34: 160 | I34: 145 | J34: -0.0303030303
A35: Good | B35: 80 | C35: 115 | D35: 100 | F35: Good | G35: 85 | H35: 125 | I35: 105 | J35: 0.08695652174
A36: Average | B36: 55 | C36: 80 | D36: 70 | F36: Average | G36: 65 | H36: 95 | I36: 80 | J36: 0.1875
A37: Fair | B37: 40 | C37: 55 | D37: 50 | F37: Fair | G37: 45 | H37: 60 | I37: 55 | J37: 0.09090909091
A38: Low | B38: 20 | C38: 35 | D38: 30 | F38: Low | G38: 25 | H38: 40 | I38: 35 | J38: 0.1428571429
A41: Minimum Feed Processing Facility | F41: Minimum Feed Processing Facility
B42: Low | C42: High | D42: Midpt | G42: low | H42: high | I42: midpt | J42: Sale % change from 2026 recommend (high)
A43: Very Good | B43: 60 | C43: 90 | D43: 75 | F43: Very Good | G43: 170 | H43: 215 | I43: 195 | J43: 1.388888889
A44: Good | B44: 40 | C44: 60 | D44: 50 | F44: Good | G44: 115 | H44: 170 | I44: 145 | J44: 1.833333333
A45: Average | B45: 25 | C45: 35 | D45: 30 | F45: Average | G45: 80 | H45: 110 | I45: 95 | J45: 2.142857143
A46: Fair | B46: 15 | C46: 25 | D46: 20 | F46: Fair | G46: 40 | H46: 70 | I46: 55 | J46: 1.8
A47: Low | B47: 5 | C47: 15 | D47: 10 | F47: Low | G47: 10 | H47: 40 | I47: 25 | J47: 1.666666667
